fUSD/lending_fUSD_20260510
["ID","MTS","AMOUNT","RATE_DAILY","PERIOD"]
[421978211,1778398350000,-500.0,0.0002937,2]
[421978256,1778398351000,-374.33575661,0.00027397,10]
[421978254,1778398351000,-1017.12352263,0.00027397,10]
[421978253,1778398351000,-1296.09290658,0.00027397,10]
[421978258,1778398351000,-16879.94563925,0.0003013,7]
[421978257,1778398351000,-5315.38714692,0.00027397,10]
[421978255,1778398351000,-3743.09066726,0.00027397,10]
[421978259,1778398351000,-409.51691669,0.0003013,7]
[421978265,1778398352000,2381.86829581,0.0001166,2]
[421978264,1778398352000,420.0,0.00011652,2]
[421978262,1778398352000,300.0,0.00010599,2]
[421978263,1778398352000,201.41490132,0.0001166,2]
[421978261,1778398352000,283.616,0.00010907,2]
[421978260,1778398352000,6048.0,0.00010907,2]
[421978267,1778398353000,134.88919713,0.00011659,2]
[421978268,1778398353000,250.0,0.00011659,2]
[421978266,1778398353000,365.11080287,0.00011659,2]
[421978269,1778398353000,5000.0,0.000105,2]
[421978270,1778398354000,4615.12080287,0.000105,2]
[421978272,1778398354000,10000.01,0.000105,2]
[421978271,1778398354000,10000.01,0.000105,2]
[421978273,1778398354000,10000.01,0.000105,2]
[421978274,1778398354000,10000.01,0.000105,2]
[421978276,1778398354000,10000.01,0.000105,2]
[421978275,1778398354000,10000.01,0.000105,2]
[421978278,1778398354000,10000.01,0.000105,2]
[421978277,1778398354000,10000.01,0.000105,2]
[421978288,1778398354000,5000.01,0.000105,2]
[421978279,1778398354000,10000.01,0.000105,2]
[421978287,1778398354000,5000.01,0.000105,2]
[421978284,1778398354000,5000.01,0.000105,2]
[421978286,1778398354000,5000.01,0.000105,2]
[421978280,1778398354000,10000.01,0.000105,2]
[421978283,1778398354000,10000.01,0.000105,2]
[421978282,1778398354000,10000.01,0.000105,2]
[421978281,1778398354000,10000.01,0.000105,2]
[421978285,1778398354000,5000.01,0.000105,2]
[421978291,1778398355000,-10000.01,0.000105,2]
[421978290,1778398355000,168.0,0.00012,3]
[421978289,1778398355000,-10000.01,0.000105,2]
[421978293,1778398356000,547.9883488,0.00027397,120]
[421978292,1778398356000,-10000.01,0.000105,2]
[421978295,1778398460000,-10000.01,0.000105,2]
[421978298,1778398513000,-10000.01,0.000105,2]
[421978300,1778398566000,-10000.01,0.000105,2]
[421978302,1778398566000,-500.0,0.00010499,2]
[421978303,1778398566000,-636.23058701,0.00010499,2]
[421978304,1778398566000,-8713.77941299,0.000105,2]
[421978301,1778398566000,-150.0,0.00010499,2]
[421978306,1778398567000,-500.0,0.00010499,2]
[421978305,1778398567000,-500.0,0.00010499,2]
[421978310,1778398567000,-269.54456302,0.00010499,2]
[421978311,1778398567000,-7230.46543698,0.000105,2]
[421978307,1778398567000,-500.0,0.00010499,2]
[421978308,1778398567000,-500.0,0.00010499,2]
[421978314,1778398567000,-160.481,0.0001029,2]
[421978313,1778398567000,-8522.536783,0.000105,2]
[421978312,1778398567000,-1477.473217,0.00010447,2]
[421978315,1778398567000,-476.55908028,0.00010499,2]
[421978316,1778398567000,-500.0,0.00010499,2]
[421978309,1778398567000,-500.0,0.00010499,2]
[421978317,1778398567000,-8862.96991972,0.000105,2]
[421978320,1778398568000,-150.0,0.00010301,2]
[421978321,1778398568000,-9850.01,0.000105,2]
[421978319,1778398568000,-10000.01,0.000105,2]
[421978318,1778398568000,339.0,0.00010187,2]
[421978322,1778398569000,-300.0,0.00010498,2]
[421978323,1778398569000,-9700.01,0.000105,2]
[421978326,1778398890000,7826.0,0.0002739,120]
[421978328,1778398893000,-1200.0,0.000104,2]
[421978327,1778398893000,-701.07,0.000104,2]
[421978333,1778398894000,-635.46822203,0.00010498,2]
[421978332,1778398894000,-564.53177797,0.00010445,2]
[421978330,1778398894000,-150.34542768,0.00010423,2]
[421978331,1778398894000,-287.01043303,0.00010445,2]
[421978329,1778398894000,-762.64413929,0.000104,2]
[421978334,1778398895000,-564.53177797,0.00010498,2]
[421978336,1778399071000,-308.85,0.00010273,2]
[421978335,1778399071000,-308.85,9.759e-05,2]
[421978338,1778399072000,226.273956,0.00024732,120]
[421978337,1778399072000,734.907257,0.00024732,120]
[421978339,1778399074000,-350.0,0.0002,10]
[421978343,1778399074000,-166.66,0.00024151,30]
[421978342,1778399074000,-166.66,0.00023673,30]
[421978341,1778399074000,-166.66,0.00023195,30]
[421978340,1778399074000,-166.66,0.00022716,30]
[421978344,1778399074000,-166.66,0.00024629,30]
[421978345,1778399074000,-179.7731,0.00024732,14]
[421978347,1778399074000,-166.66,0.00025108,30]
[421978348,1778399074000,-441.18,0.00025378,30]
[421978349,1778399074000,-460.7,0.00025811,30]
[421978346,1778399074000,-441.18,0.00024946,30]
[421978365,1778399075000,-208.47,0.00028265,30]
[421978364,1778399075000,-294.12,0.00028111,30]
[421978362,1778399075000,-294.12,0.00028111,30]
[421978363,1778399075000,-294.12,0.00028111,30]
[421978360,1778399075000,-294.12,0.00028111,30]
[421978361,1778399075000,-294.12,0.00028111,30]
[421978359,1778399075000,-294.12,0.00028111,30]
[421978356,1778399075000,-300.0,0.00027399,10]
[421978355,1778399075000,-6111.09,0.00027397,10]
[421978354,1778399075000,-236.220189,0.00027205,14]
[421978351,1778399075000,-460.7,0.00026243,30]
[421978352,1778399075000,-441.18,0.00026243,30]
[421978353,1778399075000,-441.18,0.00026676,30]
[421978350,1778399075000,-441.18,0.00025811,30]
[421978366,1778399075000,-208.47,0.00028265,30]
[421978358,1778399075000,-287.49,0.00027538,120]
[421978368,1778399075000,-208.47,0.00028265,30]
[421978357,1778399075000,-436.68,0.000274,14]
[421978371,1778399075000,-157.35,0.00028347,30]
[421978367,1778399075000,-208.47,0.00028265,30]
[421978383,1778399075000,-166.0,0.00030832,30]
[421978382,1778399075000,-151.0,0.00030832,30]
[421978380,1778399075000,-198.0,0.000301,120]
[421978381,1778399075000,-300.0,0.00030129,10]
[421978378,1778399075000,-436.68,0.000297,14]
[421978385,1778399075000,-155.0,0.00030832,30]
[421978379,1778399075000,-300.0,0.00029999,10]
[421978384,1778399075000,-183.0,0.00030832,30]
[421978376,1778399075000,-828.0,0.00029496,10]
[421978375,1778399075000,-208.10422263,0.000286,30]
[421978373,1778399075000,-157.35,0.00028347,30]
[421978374,1778399075000,-157.35,0.00028347,30]
[421978372,1778399075000,-157.35,0.00028347,30]
[421978370,1778399075000,-157.35,0.00028347,30]
[421978369,1778399075000,-208.47,0.00028265,30]
[421978377,1778399075000,-614.0,0.00029496,10]
[421978398,1778399076000,-570.807798,0.00033,14]
[421978400,1778399076000,-500.0,0.00033512,11]
[421978399,1778399076000,-303.94,0.00033,120]
[421978397,1778399076000,-159.0169126,0.00032832,30]
[421978394,1778399076000,-500.0,0.00032601,10]
[421978396,1778399076000,-183.0,0.00032832,30]
[421978395,1778399076000,-151.0,0.00032832,30]
[421978390,1778399076000,-287.49,0.00031976,120]
[421978393,1778399076000,-436.68,0.000326,14]
[421978392,1778399076000,-196.850158,0.00032152,14]
[421978389,1778399076000,-155.0,0.00031832,30]
[421978388,1778399076000,-183.0,0.00031832,30]
[421978387,1778399076000,-151.0,0.00031832,30]
[421978401,1778399076000,-161.7242559,0.00033832,30]
[421978391,1778399076000,-303.94,0.00032,120]
[421978403,1778399076000,-303.94,0.000339,120]
[421978386,1778399076000,-436.68,0.000311,14]
[421978404,1778399076000,-436.68,0.000339,14]
[421978419,1778399076000,-501.14462935,0.00036043,32]
[421978420,1778399076000,-500.0,0.00036247,14]
[421978418,1778399076000,-303.94,0.00036,120]
[421978415,1778399076000,-436.68,0.000354,14]
[421978416,1778399076000,-151.56,0.00035616,60]
[421978417,1778399076000,-183.0,0.00035832,30]
[421978414,1778399076000,-500.0,0.00035336,13]
[421978411,1778399076000,-303.94,0.00035,120]
[421978402,1778399076000,-183.0,0.00033832,30]
[421978412,1778399076000,-151.0,0.000352,11]
[421978410,1778399076000,-318.0,0.00035,14]
[421978409,1778399076000,-300.0,0.00034999,10]
[421978408,1778399076000,-500.0,0.00034993,29]
[421978406,1778399076000,-183.0,0.00034832,30]
[421978407,1778399076000,-172.0,0.00034832,30]
[421978405,1778399076000,-500.0,0.00034424,12]
[421978413,1778399076000,-160.481,0.00035218,41]
[421978436,1778399077000,-257.83413924,0.000381,33]
[421978433,1778399077000,-2621.418,0.00037979,18]
[421978435,1778399077000,-201.26539751,0.00038084,30]
[421978434,1778399077000,-500.0,0.0003807,16]
[421978432,1778399077000,-1444.0,0.00037753,120]
[421978430,1778399077000,-151.56,0.00037443,60]
[421978431,1778399077000,-300.0,0.00037487,10]
[421978428,1778399077000,-500.0,0.00037159,15]
[421978427,1778399077000,-164.0,0.00037,120]
[421978426,1778399077000,-150.0,0.00037,120]
[421978425,1778399077000,-208.10422263,0.00037,120]
[421978424,1778399077000,-300.0,0.00036999,10]
[421978423,1778399077000,-183.0,0.00036832,30]
[421978422,1778399077000,-287.49,0.00036414,120]
[421978438,1778399077000,-151.81,0.00038909,120]
[421978429,1778399077000,-436.68,0.000372,14]
[421978421,1778399077000,-170.28,0.00036323,10]
[421978437,1778399077000,-1021.12,0.00038356,120]
[421978440,1778399077000,-151.86,0.00038924,120]
[421978439,1778399077000,-151.66,0.00038924,120]
[421978454,1778399077000,-151.81,0.00039309,120]
[421978455,1778399077000,-151.66,0.00039324,120]
[421978453,1778399077000,-151.56,0.00039269,60]
[421978451,1778399077000,-151.66,0.00039224,120]
[421978450,1778399077000,-151.81,0.00039209,120]
[421978449,1778399077000,-151.86,0.00039124,120]
[421978452,1778399077000,-151.86,0.00039224,120]
[421978448,1778399077000,-151.66,0.00039124,120]
[421978446,1778399077000,-567.83691056,0.00039041,10]
[421978444,1778399077000,-151.66,0.00039024,120]
[421978445,1778399077000,-151.86,0.00039024,120]
[421978443,1778399077000,-151.81,0.00039009,120]
[421978442,1778399077000,-436.68,0.00039,14]
[421978441,1778399077000,-500.0,0.00038982,17]
[421978447,1778399077000,-151.81,0.00039109,120]
[421978465,1778399078000,-151.86,0.00039524,120]
[421978469,1778399078000,-151.66,0.00039624,120]
[421978468,1778399078000,-151.81,0.00039609,120]
[421978471,1778399078000,-151.81,0.00039709,120]
[421978467,1778399078000,-2000.0,0.00039589,120]
[421978466,1778399078000,-196.850158,0.00039572,21]
[421978464,1778399078000,-151.66,0.00039524,120]
[421978456,1778399078000,-151.86,0.00039324,120]
[421978462,1778399078000,-189.38506304,0.000395,30]
[421978459,1778399078000,-151.86,0.00039424,120]
[421978461,1778399078000,-189.38506304,0.000395,30]
[421978460,1778399078000,-189.38506305,0.000395,30]
[421978458,1778399078000,-151.66,0.00039424,120]
[421978457,1778399078000,-151.81,0.00039409,120]
[421978463,1778399078000,-151.81,0.00039509,120]
[421978470,1778399078000,-151.86,0.00039624,120]
[421978477,1778399078000,-151.86,0.00039824,120]
[421978475,1778399078000,-151.81,0.00039809,120]
[421978472,1778399078000,-151.66,0.00039724,120]
[421978488,1778399078000,-2044.74459,0.0004,10]
[421978484,1778399078000,-1600.0,0.00039909,30]
[421978485,1778399078000,-151.81,0.00039909,120]
[421978486,1778399078000,-151.86,0.00039924,120]
[421978483,1778399078000,-432.19,0.000399,90]
[421978481,1778399078000,-353.86748693,0.00039899,14]
[421978487,1778399078000,-506.549,0.0004,15]
[421978482,1778399078000,-2626.43418213,0.000399,20]
[421978479,1778399078000,-313817.99439307,0.0003987,14]
[421978478,1778399078000,-289.98873107,0.00039869,10]
[421978476,1778399078000,-151.66644828,0.00039824,120]
[421978473,1778399078000,-151.86,0.00039724,120]
[421978480,1778399078000,-500.0,0.00039893,18]
[421978474,1778399078000,-1344.62855072,0.000398,14]
[421978503,1778399079000,-151.81,0.00040109,120]
[421978502,1778399079000,-436.68,0.000401,14]
[421978500,1778399079000,-908.624,0.00040053,30]
[421978499,1778399079000,-151.86,0.00040024,120]
[421978497,1778399079000,-427.06939255,0.0004,68]
[421978498,1778399079000,-151.81,0.00040009,120]
[421978494,1778399079000,-201.54,0.0004,120]
[421978493,1778399079000,-345.87,0.0004,120]
[421978495,1778399079000,-152.0,0.0004,120]
[421978504,1778399079000,-151.86,0.00040124,120]
[421978492,1778399079000,-755.05,0.0004,120]
[421978491,1778399079000,-361.75,0.0004,120]
[421978490,1778399079000,-198.14,0.0004,120]
[421978489,1778399079000,-1636.65,0.0004,14]
[421978496,1778399079000,-398.36,0.0004,120]
[421978506,1778399079000,-2199.596,0.000402,120]
[421978501,1778399079000,-189.24726793,0.00040064,30]
[421978509,1778399079000,-151.81,0.00040209,120]
[421978505,1778399079000,-779.0,0.000402,120]
[421978522,1778399079000,-155.61,0.00040504,13]
[421978520,1778399079000,-151.81,0.00040409,120]
[421978518,1778399079000,-151.81,0.00040309,120]
[421978519,1778399079000,-151.9,0.00040324,120]
[421978516,1778399079000,-173.6,0.00040303,13]
[421978514,1778399079000,-210.38,0.00040303,13]
[421978517,1778399079000,-173.59,0.00040303,13]
[421978521,1778399079000,-2804.9908,0.00040488,30]
[421978512,1778399079000,-289.21,0.00040303,13]
[421978513,1778399079000,-210.38,0.00040303,13]
[421978511,1778399079000,-684.72,0.0004029,60]
[421978510,1778399079000,-151.86,0.00040224,120]
[421978507,1778399079000,-2199.596,0.000402,120]
[421978508,1778399079000,-2199.59,0.000402,120]
[421978515,1778399079000,-173.6,0.00040303,13]
[421978537,1778399080000,-211.12867234,0.00040822,60]
[421978536,1778399080000,-150.0,0.00040822,60]
[421978535,1778399080000,-151.81,0.00040809,120]
[421978534,1778399080000,-250.34,0.00040808,120]
[421978533,1778399080000,-500.0,0.00040805,19]
[421978532,1778399080000,-203.0,0.00040778,10]
[421978531,1778399080000,-150.0,0.00040778,10]
[421978527,1778399080000,-151.81,0.00040709,120]
[421978528,1778399080000,-150.0,0.00040778,10]
[421978529,1778399080000,-150.0,0.00040778,10]
[421978525,1778399080000,-151.81,0.00040609,120]
[421978526,1778399080000,-212.34781432,0.00040664,12]
[421978523,1778399080000,-155.62,0.00040504,13]
[421978524,1778399080000,-151.81,0.00040509,120]
[421978538,1778399080000,-210.38,0.00040851,13]
[421978530,1778399080000,-150.0,0.00040778,10]
[421978541,1778399080000,-173.6,0.00040851,13]
[421978554,1778399080000,-188.93,0.00040959,14]
[421978540,1778399080000,-173.6,0.00040851,13]
[421978557,1778399080000,-2380.70743252,0.00040995,15]
[421978555,1778399080000,-161.52,0.0004099,120]
[421978539,1778399080000,-210.38,0.00040851,13]
[421978551,1778399080000,-155.16,0.00040952,120]
[421978553,1778399080000,-188.93,0.00040959,14]
[421978552,1778399080000,-188.93,0.00040959,14]
[421978548,1778399080000,-611.522,0.00040904,30]
[421978556,1778399080000,-2087.55661912,0.00040995,15]
[421978550,1778399080000,-273931.0,0.0004095,60]
[421978547,1778399080000,-500.0,0.00040904,30]
[421978546,1778399080000,-500.0,0.00040904,30]
[421978543,1778399080000,-287.49,0.00040853,120]
[421978545,1778399080000,-500.0,0.00040904,30]
[421978544,1778399080000,-330.09,0.000409,17]
[421978549,1778399080000,-151.81,0.00040909,120]
[421978542,1778399080000,-173.59,0.00040851,13]
[421978565,1778399081000,-1561.0,0.00041096,120]
[421978566,1778399081000,-800.0,0.00041096,30]
[421978558,1778399081000,-5000.0,0.00041,10]
[421978567,1778399081000,-800.0,0.00041096,30]
[421978564,1778399081000,-155.62,0.00041052,13]
[421978561,1778399081000,-710.36812025,0.00041,30]
[421978562,1778399081000,-151.81,0.00041009,120]
[421978560,1778399081000,-1119.45747071,0.00041,30]
[421978559,1778399081000,-186.0,0.00041,90]
[421978571,1778399081000,-800.0,0.00041096,30]
[421978563,1778399081000,-155.61,0.00041052,13]
[421978569,1778399081000,-800.0,0.00041096,30]
[421978576,1778399081000,-800.0,0.00041096,30]
[421978570,1778399081000,-800.0,0.00041096,30]
[421978568,1778399081000,-800.0,0.00041096,30]
[421978583,1778399081000,5092.57,0.00027397,10]
[421978582,1778399081000,408.96,0.00027397,120]
[421978581,1778399081000,355.73805248,0.0004109,10]
[421978579,1778399081000,-176.0,0.00041096,30]
[421978580,1778399081000,1841.63639402,0.00041095,10]
[421978575,1778399081000,-800.0,0.00041096,30]
[421978578,1778399081000,-800.0,0.00041096,30]
[421978573,1778399081000,-800.0,0.00041096,30]
[421978574,1778399081000,-800.0,0.00041096,30]
[421978572,1778399081000,-800.0,0.00041096,30]
[421978577,1778399081000,-800.0,0.00041096,30]
[421978588,1778399082000,4243.81,0.00027397,10]
[421978587,1778399082000,166.55,0.00041095,120]
[421978586,1778399082000,204.48,0.00041096,120]
[421978585,1778399082000,2000.0,0.0004109,10]
[421978584,1778399082000,162.0,0.0004,120]
[421978592,1778399322000,2419.67,0.00027397,120]
[421978591,1778399322000,172.833188,0.00023634,120]
[421978593,1778399327000,-400.199,9.819e-05,2]
[421978594,1778399327000,-46.86043854,9.88e-05,2]
[421978595,1778399328000,1000.2015563,0.0002738,120]
[421978664,1778399592000,-1855.5497404,0.000103,2]
[421978663,1778399592000,-339.0,0.0001,2]
[421978668,1778399592000,-609.85170828,0.00010499,2]
[421978666,1778399592000,-339.0,0.00010424,2]
[421978667,1778399592000,-1052.593,0.00010499,2]
[421978669,1778399592000,-500.0,0.00010499,2]
[421978673,1778399592000,-176.89619579,0.00010499,2]
[421978672,1778399592000,-500.0,0.00010499,2]
[421978671,1778399592000,-500.0,0.00010499,2]
[421978665,1778399592000,-551.72409432,0.00010423,2]
[421978674,1778399592000,-500.0,0.00010499,2]
[421978676,1778399592000,-183.59135619,0.00010499,2]
[421978670,1778399592000,-627.94457485,0.00010499,2]
[421978680,1778399592000,-164.486,0.00010499,2]
[421978678,1778399592000,-500.0,0.00010499,2]
[421978690,1778399592000,-2351.20406109,0.000105,2]
[421978689,1778399592000,-296.82102635,0.000105,2]
[421978687,1778399592000,-500.0,0.000105,2]
[421978688,1778399592000,-68581.91747912,0.000105,2]
[421978686,1778399592000,-49.67327095,0.000105,2]
[421978675,1778399592000,-307.72717367,0.00010499,2]
[421978685,1778399592000,-380.52932165,0.000105,2]
[421978683,1778399592000,-40787.27242913,0.000105,2]
[421978682,1778399592000,-54269.00427263,0.000105,2]
[421978681,1778399592000,-174.07,0.000105,2]
[421978679,1778399592000,-539.22748655,0.00010499,2]
[421978684,1778399592000,-27207.78442402,0.000105,2]
[421978677,1778399592000,-500.0,0.00010499,2]
[421978691,1778399593000,-8280.6952699,0.000105,2]
[421978693,1778399875000,-82.19601053,0.00010099,2]
[421978695,1778399907000,-67.80398947,0.00010099,2]
[421978696,1778399907000,-82.19601053,0.00010199,2]
[421978694,1778399907000,168.0,0.00012,3]
[421978698,1778399908000,-82.19601053,0.00010448,2]
[421978697,1778399908000,-67.80398947,0.00010199,2]
[421978701,1778399908000,-59.15852851,0.00010498,2]
[421978700,1778399908000,-90.84147149,0.00010448,2]
[421978699,1778399908000,188.47409994,0.0001,30]
[421978703,1778399909000,-150.0,0.00010499,2]
[421978702,1778399909000,-150.0,0.00010499,2]
[421978706,1778399910000,-150.0,0.00010499,2]
[421978705,1778399910000,2214.23,0.00027397,120]
[421978704,1778399910000,-150.0,0.00010499,2]
[421978708,1778399911000,-150.0,0.00010499,2]
[421978707,1778399911000,-150.0,0.00010499,2]
[421978709,1778399912000,-150.0,0.00010498,2]
[421978711,1778399923000,-150.0,0.00010498,2]
[421978710,1778399923000,-150.0,0.00010498,2]
[421978712,1778399923000,-150.0,0.00010498,2]
[421978715,1778399924000,-150.0,0.00010498,2]
[421978714,1778399924000,-150.0,0.00010498,2]
[421978713,1778399924000,-150.0,0.00010498,2]
[421978717,1778399925000,-150.0,0.00010498,2]
[421978716,1778399925000,-150.0,0.00010498,2]
[421978718,1778399926000,-150.0,0.00010498,2]
[421978719,1778399926000,-150.0,0.00010498,2]
[421978720,1778399926000,-150.0,0.00010423,2]
[421978721,1778399927000,-150.0,0.00010423,2]
[421978722,1778399928000,-150.0,0.00010423,2]
[421978729,1778400026000,-150.0,0.00010423,2]
[421978736,1778400186000,-10.481,0.00010499,2]
[421978734,1778400186000,-150.0,0.00010498,2]
[421978735,1778400186000,-250.0,0.00010499,2]
[421978738,1778400187000,-4200.01709607,0.00010493,2]
[421978737,1778400187000,-250.0,0.00010458,2]
[421978740,1778400188000,-4450.01709607,0.00010493,2]
[421978739,1778400188000,-4450.01709607,0.00010493,2]
[421978741,1778400189000,-4450.01709607,0.00010493,2]
[421978744,1778400189000,-4150.01709607,0.00010493,2]
[421978743,1778400189000,-300.0,0.00010492,2]
[421978742,1778400189000,-4450.01709607,0.00010493,2]
[421978746,1778400296000,-4450.01709607,0.00010493,2]
[421978748,1778400297000,-144.61215966,0.00010674,2]
[421978747,1778400297000,-4155.40493641,0.00010493,2]
[421978751,1778400298000,-189.39503445,0.00010499,2]
[421978749,1778400298000,-4300.01709607,0.00010674,2]
[421978750,1778400298000,955.73253439,0.00027397,120]
[421978753,1778400298000,-216.53961376,0.00010499,2]
[421978755,1778400298000,-308.85,0.00010787,2]
[421978754,1778400298000,-3136.79222415,0.00010674,2]
[421978757,1778400298000,-81.90060995,0.00010989,2]
[421978756,1778400298000,-150.0,0.00010989,2]
[421978752,1778400298000,-216.53961376,0.00010499,2]
[421978762,1778400299000,-150.0,0.0001134,2]
[421978760,1778400299000,-150.0,0.00011098,2]
[421978761,1778400299000,-308.85,0.000113,2]
[421978758,1778400299000,-68.09939005,0.00010989,2]
[421978764,1778400299000,-356.07689632,0.00011465,2]
[421978759,1778400299000,-152.0,0.0001101,2]
[421978763,1778400299000,-339.13956146,0.00011465,2]
[421978766,1778400299000,-250.0,0.00011465,2]
[421978773,1778400299000,-2000.0,0.00011831,2]
[421978765,1778400299000,-500.0,0.00011465,2]
[421978768,1778400299000,-190.92,0.00011691,2]
[421978769,1778400299000,-1269.6,0.00011792,2]
[421978770,1778400299000,-145.33124824,0.00011793,2]
[421978771,1778400299000,-26.34875176,0.00011793,2]
[421978772,1778400299000,-308.85,0.00011814,2]
[421978775,1778400299000,-201.26539751,0.00011851,2]
[421978774,1778400299000,-201.2653975,0.00011851,2]
[421978767,1778400299000,-420.0,0.00011535,2]
[421978776,1778400300000,-200.6025001,0.00010493,2]
[421978777,1778400300000,-2553.11387223,0.000114,2]
[421978780,1778400304000,-4155.57057374,0.00011,2]
[421978779,1778400304000,-144.44652233,0.00010493,2]
[421978778,1778400304000,-4300.01709607,0.00010493,2]
[421978787,1778400305000,-308.85,0.00012328,2]
[421978782,1778400305000,-166.43,0.00012022,2]
[421978781,1778400305000,-4217.60114939,0.00011,2]
[421978784,1778400305000,-150.0,0.00012054,2]
[421978785,1778400305000,-1269.6,0.00012087,2]
[421978783,1778400305000,-175.0,0.00012022,2]
[421978786,1778400305000,-186.06,0.00012131,2]
[421978789,1778400305000,-1269.6,0.00012381,2]
[421978792,1778400305000,-730.38911691,0.00012676,2]
[421978793,1778400305000,-5798.0,0.00012832,2]
[421978794,1778400305000,-2077.03291557,0.00012832,2]
[421978791,1778400305000,-539.21088309,0.00012676,2]
[421978788,1778400305000,-160.63,0.00012329,2]
[421978790,1778400305000,-162.44,0.00012432,2]
[421978796,1778400306000,-308.85,0.00012841,2]
[421978798,1778400306000,-3742.51,0.0001286,2]
[421978800,1778400306000,-587.95843527,0.00013061,2]
[421978801,1778400306000,-190.92,0.00013153,2]
[421978795,1778400306000,-1460.96708443,0.00012832,2]
[421978803,1778400306000,-224.25807751,0.0001331,2]
[421978802,1778400306000,-587.95843527,0.00013298,2]
[421978804,1778400306000,-1775.74192249,0.0001331,2]
[421978805,1778400306000,-6829.68010999,0.00013325,2]
[421978799,1778400306000,-1352.0,0.0001286,2]
[421978797,1778400306000,-150.0,0.0001286,2]
[421978812,1778400307000,-8605.42203248,0.00010479,2]
[421978811,1778400307000,-8605.42203248,0.00010479,2]
[421978809,1778400307000,5000.01,0.00010479,2]
[421978810,1778400307000,5000.01,0.00010479,2]
[421978808,1778400307000,5000.01,0.00010479,2]
[421978807,1778400307000,-8605.42203248,0.00013325,2]
[421978806,1778400307000,1000.2015563,0.000272,120]
[421978813,1778400308000,-8605.42203248,0.00010479,2]
[421978814,1778400309000,-8605.42203248,0.00010479,2]
[421978815,1778400309000,-8605.42203248,0.00010479,2]
[421978817,1778400329000,262.719738,0.0002362,120]
[421978816,1778400329000,434.251641,0.0002362,120]
[421978818,1778400332000,226.273956,0.0002362,120]
[421978819,1778400345000,367.78105174,0.000226,120]
[421978820,1778400350000,2266.82676128,0.0002739,120]
[421978821,1778400369000,1695.906361,0.00010425,2]
[421978822,1778400386000,500.0,0.00010323,2]
[421978823,1778400387000,502.79906522,0.00010379,2]
[421978824,1778400492000,610.12,0.00024658,120]
[421978832,1778400548000,155.5534,0.00010378,2]
[421978833,1778400563000,168.0,0.00012,3]
[421978834,1778400578000,1047.67740867,0.00010378,2]
[421978835,1778400602000,194.0,0.00026678,120]
[421978836,1778400630000,-150.0,0.00010478,2]
[421978928,1778400718000,-1254.41808677,0.00010574,2]
[421978924,1778400718000,-605955.51972916,0.00010574,2]
[421978926,1778400718000,-244932.44145682,0.00010574,2]
[421978925,1778400718000,-197819.62482089,0.00010574,2]
[421978923,1778400718000,-160.64784091,0.00010573,2]
[421978922,1778400718000,-238.0,0.000105,2]
[421978916,1778400718000,-300.0,0.00010478,2]
[421978918,1778400718000,-300.0,0.00010478,2]
[421978920,1778400718000,-582.66,0.00010479,2]